fUSD/lending_fUSD_20250614
["ID","MTS","AMOUNT","RATE_DAILY","PERIOD"]
[365818765,1749936632615,-500.0,0.00016899,2]
[365818767,1749936632624,-466.65692583,0.00016899,2]
[365818769,1749936632634,-353.16891668,0.00016899,2]
[365818771,1749936632643,-500.0,0.00016899,2]
[365818773,1749936632653,-500.0,0.00016899,2]
[365818775,1749936632662,-500.0,0.00016899,2]
[365818777,1749936632672,-500.0,0.00016899,2]
[365818779,1749936632681,-393.47657323,0.00016899,2]
[365818781,1749936632690,-500.0,0.00016899,2]
[365818783,1749936632699,-500.0,0.00016899,2]
[365818785,1749936632708,-500.0,0.00016899,2]
[365818787,1749936632717,-500.0,0.00016899,2]
[365818789,1749936632726,-500.0,0.00016899,2]
[365818791,1749936632736,-500.0,0.00016899,2]
[365818793,1749936632745,-500.0,0.00016899,2]
[365818796,1749936632754,-431.57029878,0.00016899,2]
[365818798,1749936632763,-1073.374,0.00016899,2]
[365818799,1749936632773,-161.41727078,0.000169,2]
[365818801,1749936632783,-12442.4876,0.000169,2]
[365818803,1749936632793,-169760.9236,0.000169,2]
[365818805,1749936632803,-1000.0,0.000169,2]
[365818807,1749936632812,-176.26437662,0.000169,2]
[365818810,1749936632822,-287.37031826,0.000169,2]
[365818812,1749936632831,-1000.0,0.000169,2]
[365818814,1749936632841,-281.10741671,0.000169,2]
[365818816,1749936632851,-10820.87875887,0.000169,2]
[365818818,1749936632860,-7257.28641607,0.000169,2]
[365818819,1749936632869,-158.90458755,0.000169,2]
[365818821,1749936632878,-4341.58454542,0.000169,2]
[365818823,1749936632888,-1618.06465176,0.000169,2]
[365818825,1749936632897,-364.04620884,0.000169,2]
[365818827,1749936632906,-233.0,0.00016929,2]
[365818829,1749936632915,-202.0,0.00016939,4]
[365818831,1749936632924,-850.78118349,0.00016972,2]
[365818833,1749936632933,-500.0,0.00016973,2]
[365818835,1749936632943,-500.0,0.00016973,2]
[365818837,1749936632952,-500.0,0.00016973,2]
[365818840,1749936632963,-500.0,0.00016973,2]
[365818841,1749936632972,-500.0,0.00016973,2]
[365818844,1749936632983,-16208.0,0.00016986,2]
[365818846,1749936632992,-393.0,0.00016986,2]
[365818847,1749936633001,-11725.39834938,0.0001699,2]
[365818850,1749936633014,-10413.35963984,0.0001699,2]
[365818852,1749936633026,-549.3,0.0001699,2]
[365819321,1749936637810,-522.27499128,0.0001699,2]
[365819323,1749936637822,-4776.89144611,0.0001699,2]
[365819329,1749936637868,-517.17495246,0.0001699,2]
[365819336,1749936637928,-1317.50000001,0.0001699,2]
[365819342,1749936637986,-588.73150695,0.0001699,2]
[365819345,1749936637998,-630.31900023,0.0001699,2]
[365819347,1749936638009,-959.51539878,0.0001699,2]
[365819548,1749936639855,-16410.38658803,0.0001699,2]
[365819549,1749936639865,-246.44,0.00016994,2]
[365819550,1749936639874,-252.93,0.00016994,2]
[365819551,1749936639883,-173.2161586,0.00016994,2]
[365819552,1749936639893,-1319.5547934,0.00016994,2]
[365819553,1749936639902,-159.0763254,0.00016994,2]
[365819554,1749936639912,-14519.3539942,0.00016994,2]
[365819555,1749936639922,-493.2725341,0.00016994,2]
[365819556,1749936639931,-190.1249622,0.00016994,2]
[365819557,1749936639941,-15499.7358274,0.00016994,2]
[365819558,1749936639950,-150.0,0.00016999,2]
[365819559,1749936639959,-150.0,0.00016999,2]
[365819560,1749936639969,-150.0,0.00016999,2]
[365819561,1749936639978,-150.0,0.00016999,2]
[365819562,1749936639987,-150.0,0.00016999,2]
[365819563,1749936639996,-150.0,0.00016999,2]
[365819564,1749936640006,-150.0,0.00016999,2]
[365819565,1749936640015,-150.0,0.00016999,2]
[365819566,1749936640027,-150.0,0.00016999,2]
[365819567,1749936640037,-150.0,0.00016999,2]
[365819568,1749936640046,-500.0,0.00016999,2]
[365819569,1749936640056,-150.0,0.00016999,2]
[365819570,1749936640065,-150.0,0.00016999,2]
[365819571,1749936640074,-255.00578496,0.00016999,2]
[365819572,1749936640083,-500.0,0.00016999,2]
[365819573,1749936640092,-151.94070941,0.00016999,2]
[365819574,1749936640103,-500.0,0.00016999,2]
[365819576,1749936640112,-150.0,0.00016999,2]
[365819578,1749936640122,-500.0,0.00016999,2]
[365819580,1749936640132,-150.0,0.00016999,2]
[365819582,1749936640141,-500.0,0.00016999,2]
[365819584,1749936640150,-150.0,0.00016999,2]
[365819585,1749936640159,-500.0,0.00016999,2]
[365819587,1749936640168,-500.0,0.00016999,2]
[365819589,1749936640177,-664.0,0.00016999,2]
[365819591,1749936640186,-150.0,0.00016999,2]
[365819593,1749936640195,-150.0,0.00016999,2]
[365819595,1749936640204,-278.49168584,0.00016999,2]
[365819597,1749936640214,-150.0,0.00016999,2]
[365819599,1749936640223,-150.0,0.00016999,2]
[365819601,1749936640232,-500.0,0.00016999,2]
[365819603,1749936640241,-254.03688897,0.00016999,2]
[365819605,1749936640250,-500.0,0.00016999,2]
[365819607,1749936640259,-500.0,0.00016999,2]
[365819608,1749936640268,-315.87449832,0.00016999,2]
[365819609,1749936640277,-277.5988289,0.00016999,2]
[365819610,1749936640286,-500.0,0.00016999,2]
[365819611,1749936640297,-500.0,0.00016999,2]
[365819612,1749936640313,-500.0,0.00016999,2]
[365819613,1749936640323,-392.51764214,0.00016999,2]
[365819614,1749936640333,-300.0,0.00016999,2]
[365819615,1749936640343,-618.0,0.00017,2]
[365819616,1749936640354,-6036.5428532,0.00017,2]
[365819617,1749936640364,-227966.80040897,0.00017,2]
[365819618,1749936640376,-367.62170312,0.00017,2]
[365819619,1749936640389,-351189.28686901,0.00017,2]
[365819620,1749936640399,-4087.0,0.00017,2]
[365819621,1749936640408,-853.0,0.00017,2]
[365819622,1749936640418,-884.0,0.00017,2]
[365819623,1749936640427,-568522.07119868,0.00017,2]
[365819624,1749936640436,-179013.88192486,0.00017,2]
[365819626,1749936640451,-2207.09324301,0.00017,2]
[365819627,1749936640460,-150.0,0.00017,2]
[365819629,1749936640469,-573.86816151,0.00017,2]
[365819631,1749936640479,-14914.65294597,0.00017,2]
[365819634,1749936640490,-3991.33602761,0.00017,2]
[365819636,1749936640501,-14116.60426,0.00017,2]
[365819638,1749936640512,-16967.96208273,0.00017,2]
[365819686,1749936640959,-12549.46863037,0.00017,2]
[365819689,1749936640971,-39520.10336308,0.00017,2]
[365819691,1749936640983,-17115.56035004,0.00017,2]
[365819693,1749936640994,-3594.81885109,0.00017,2]
[365819695,1749936641005,-2684.47178802,0.00017,2]
[365819697,1749936641016,-2417.27286946,0.00017,2]
[365819902,1749936642949,-155.0,0.00016818,2]
[365819904,1749936642958,-10456.9057653,0.00017,2]
[365819906,1749936642970,-527.905704,0.00017,2]
[365820038,1749936646404,-1871.75454092,0.00017,2]
[365820040,1749936646416,-581.20303386,0.00017,2]
[365820041,1749936646439,-595394.33712885,0.00017,2]
[365820042,1749936646449,-393020.98745971,0.00017,2]
[365820043,1749936646461,-7076.15290752,0.00017,2]
[365820044,1749936646472,-856.36107788,0.00017,2]
[365820045,1749936701559,201.0,0.00015181,2]
[365820046,1749936732648,201.0,0.00015181,2]
[365820047,1749936752149,-152.27,0.00016054,2]
[365820048,1749936753779,-206.6959572,0.00016054,2]
[365820049,1749936755299,-267.45053621,0.00016054,2]
[365820050,1749936756852,-77.25350659,0.00016054,2]
[365820051,1749936761581,202.0,0.00015181,2]
[365820052,1749936949993,-151.90818443,0.00015994,2]
[365820053,1749936952301,-159.99181557,0.00015994,2]
[365820054,1749937076262,-200.0,0.00015894,2]
[365820055,1749937078329,-163.18053621,0.00015894,2]
[365820056,1749937082084,-238.81946379,0.00015894,2]
[365820057,1749937083643,-267.45053621,0.00015894,2]
[365820058,1749937098079,-152.27,0.00015894,2]
[365820059,1749937112608,-206.6959572,0.00015894,2]
[365820060,1749937129041,-208.58679214,0.00015894,2]
[365820061,1749937143668,-152.19,0.00015894,2]
[365820062,1749937203581,-206.88157774,0.00015868,2]
[365820063,1749937205139,-155.54883671,0.00015868,2]
[365820064,1749937205163,-0.0180747,0.00015911,2]
[365820065,1749937210026,-249.9819253,0.00015911,2]
[365820066,1749937211769,2.1480747,0.00015818,2]
[365820067,1749937218694,-156.91983129,0.00015818,2]
[365820068,1749937221408,-41.93209401,0.00015818,2]
[365820069,1749937290489,-168.83451535,0.00015868,2]
[365820070,1749937292131,-271.64449919,0.00015868,2]
[365820071,1749937293858,-78.8893059,0.00015868,2]
[365820072,1749937351814,981.86,0.00013995,2]
[365820073,1749937366787,399.74,0.00013699,2]
[365820074,1749937367980,-200.0,0.00015818,2]
[365820076,1749937401478,-417.95568379,0.00015868,2]
[365820077,1749937403262,-226.22891106,0.00015868,2]
[365820078,1749937406048,-49.9433596,0.00015868,2]
[365820079,1749937452707,-188.21032092,0.00015818,2]
[365820080,1749937501235,-12.78967908,0.00015818,2]
[365820081,1749937501257,-139.21032092,0.00015853,2]
[365820082,1749937504931,-197.37990027,0.00015853,2]
[365820083,1749937509882,-81.3654626,0.00015853,2]
[365820084,1749937511399,201.0,0.00015818,2]
[365820085,1749937539051,-183.47654474,0.00015866,2]
[365820086,1749937542517,-208.88437849,0.00015866,2]
[365820087,1749937543918,-363.11277751,0.00015866,2]
[365820088,1749937548608,-301.27511087,0.00015866,2]
[365820089,1749937562655,-43.50118839,0.00015866,2]
[365820090,1749937562678,-160.78,0.00015882,2]
[365820091,1749937565177,-240.58215207,0.00015953,2]
[365820092,1749937572502,202.0,0.00015701,2]
[365820093,1749937601936,-372.76218128,0.00015868,2]
[365820094,1749937608212,-311.09829226,0.00015868,2]
[365820095,1749937611407,-252.69915562,0.00015868,2]
[365820096,1749937614080,-328.91008776,0.00015868,2]
[365820098,1749937622730,-239.09288837,0.00015868,2]
[365820099,1749937624337,-328.95372355,0.00015868,2]
[365820128,1749937683221,-232.77758568,0.00015857,2]
[365820129,1749937698762,-153.35409536,0.00015857,2]
[365820130,1749937703257,-202.36822211,0.00015857,2]
[365820131,1749937712591,-175.55145322,0.00015857,2]
[365820132,1749937727521,-245.47048127,0.00015857,2]
[365820137,1749937743237,-151.0,0.00015857,2]
[365820138,1749937745452,-209.05865562,0.00015857,2]
[365820139,1749937747122,-57.76950674,0.00015857,2]
[365820140,1749937747146,-142.74668023,0.00015873,2]
[365820141,1749937750386,-106.67331977,0.00015873,2]
[365820142,1749937750410,-139.62548458,0.00015884,2]
[365820143,1749937751928,150.0,0.00015777,7]
[365820144,1749937754762,-147.58681668,0.00015884,2]
[365820145,1749937794317,-239.1,0.00015852,2]
[365820146,1749937794339,-20.81941771,0.00015857,2]
[365820147,1749937797154,-280.30693535,0.00015857,2]
[365820148,1749937798697,-151.0,0.00015857,2]
[365820149,1749937800865,-191.3333,0.00015857,2]
[365820150,1749937804895,-60.21034694,0.00015857,2]
[365820151,1749937811810,161.1233,0.00015701,2]
[365820153,1749937831988,-9.41784793,0.00015953,2]
[365820154,1749937831999,-666.0,0.00015968,2]
[365820155,1749937832008,-592.74,0.00015984,2]
[365820156,1749937832017,-41.87904571,0.00015994,2]
[365820157,1749937832029,-258.12095429,0.00015994,2]
[365820158,1749937832062,-191.20590088,0.00015994,2]
[365820159,1749937832075,-300.0,0.00015994,2]
[365820160,1749937832185,-196.89409912,0.00015994,2]
[365820161,1749937832195,-300.0,0.00016122,2]
[365820162,1749937832205,-207.4,0.0001616,2]
[365820163,1749937832215,-3294.86,0.00016169,2]
[365820164,1749937832224,-981.86,0.00016259,2]
[365820165,1749937832234,-500.0,0.00016521,2]
[365820166,1749937832243,-1200.0,0.00016541,2]
[365820167,1749937832252,-260.97,0.00016542,2]
[365820168,1749937832262,-300.0,0.00016574,2]
[365820169,1749937832271,-3450.356063,0.00016575,2]
[365820170,1749937832281,-202.0,0.00016605,3]
[365820171,1749937832290,-300.0,0.00016659,2]
[365820172,1749937832300,-655.0,0.00016673,2]
[365820174,1749937832310,-1520.0,0.00016673,2]
[365820175,1749937832320,-1988.0,0.00016756,2]
[365820177,1749937832330,-300.0,0.0001678,2]
[365820179,1749937832339,-1000.0,0.000168,2]
[365820181,1749937832348,-1325.0,0.00016839,2]
[365820183,1749937832357,-833.63237626,0.00016862,2]
[365820185,1749937832366,-200.0,0.00016864,2]
[365820187,1749937832376,-850.14180599,0.00016876,2]
[365820189,1749937832385,-151.0,0.0001689,2]
[365820191,1749937832394,-403.13108284,0.00016899,2]
[365820193,1749937832404,-550.0,0.00016899,2]
[365820195,1749937832413,-10509.3859,0.000169,2]
[365820197,1749937832422,-163.8452,0.000169,2]
[365820199,1749937832432,-427.20834065,0.000169,2]
[365820200,1749937832441,-161.41727078,0.000169,2]
[365820202,1749937832451,-155.503,0.000169,2]
[365820203,1749937832460,-176.26437662,0.000169,2]
[365820205,1749937832470,-270.33843111,0.000169,2]
[365820208,1749937832480,-26560.92058031,0.000169,2]
[365820210,1749937832492,-9654.6018432,0.000169,2]
[365820212,1749937832502,-8042.23868675,0.000169,2]
[365820214,1749937832511,-7091.7375269,0.000169,2]
[365820216,1749937832521,-5000.0,0.000169,2]
[365820218,1749937832530,-1379.1468,0.000169,2]
[365820220,1749937832539,-288.67295634,0.000169,2]
[365820222,1749937832549,-188.97861563,0.000169,2]
[365820224,1749937832558,-158.90458755,0.000169,2]
[365820226,1749937832568,-201.33957346,0.000169,2]
[365820227,1749937832577,-501.48739074,0.00016973,2]
[365820230,1749937832587,-500.0,0.00016973,2]
[365820232,1749937832596,-179.10836407,0.00016973,2]
[365820234,1749937832606,-500.0,0.00016973,2]
[365820236,1749937832615,-500.0,0.00016973,2]
[365820238,1749937832625,-500.0,0.00016973,2]
[365820240,1749937832635,-500.0,0.00016973,2]
[365820242,1749937832644,-500.0,0.00016973,2]
[365820244,1749937832657,-500.0,0.00016973,2]
[365820246,1749937832667,-520.2937815,0.00016973,2]
[365820248,1749937832677,-707.0,0.00016981,2]
[365820250,1749937832685,-350.0,0.00016983,2]
[365820252,1749937832696,-168.0,0.00016992,2]
[365820254,1749937832705,-14028.4212876,0.00016994,2]
[365820256,1749937832714,-254.8311138,0.00016994,2]
[365820258,1749937832730,-3911.3463134,0.00016994,2]
[365820260,1749937832741,-2149.5955924,0.00016994,2]
[365820262,1749937832751,-14767.6072765,0.00016994,2]
[365820264,1749937832760,-281.9633986,0.00016994,2]
[365820266,1749937832770,-500.0,0.00016999,2]
[365820268,1749937832784,-500.0,0.00016999,2]
[365820270,1749937832794,-500.0,0.00016999,2]
[365820272,1749937832804,-500.0,0.00016999,2]
[365820274,1749937832814,-500.0,0.00016999,2]
[365820276,1749937832823,-312.27183285,0.00016999,2]
[365820278,1749937832833,-500.0,0.00016999,2]
[365820280,1749937832842,-500.0,0.00016999,2]
[365820282,1749937832851,-500.0,0.00016999,2]
[365820284,1749937832860,-436.98902457,0.00016999,2]
[365820286,1749937832869,-500.0,0.00016999,2]
[365820288,1749937832878,-595.48558726,0.00016999,2]
[365820290,1749937832887,-500.0,0.00016999,2]
[365820292,1749937832896,-500.0,0.00016999,2]
[365820342,1749937833238,-500.0,0.00016999,2]
[365820346,1749937833257,-284.22398372,0.00016999,2]
[365820348,1749937833267,-500.0,0.00016999,2]
[365820350,1749937833276,-500.0,0.00016999,2]
[365820352,1749937833285,-221.87143625,0.00016999,2]
[365820357,1749937833323,-278.12856375,0.00016999,2]
[365820359,1749937833333,-251.37525929,0.00016999,2]
[365820361,1749937833342,-500.0,0.00016999,2]
[365820363,1749937833351,-500.0,0.00016999,2]
[365820365,1749937833360,-500.0,0.00016999,2]
[365820367,1749937833370,-602.8441852,0.00016999,2]
[365820369,1749937833379,-666.0,0.00016999,2]
[365820371,1749937833389,-176.3,0.00016999,2]
[365820373,1749937833398,-150.0,0.00016999,2]
[365820375,1749937833408,-150.0,0.00016999,2]
[365820377,1749937833417,-150.0,0.00016999,2]
[365820379,1749937833426,-500.0,0.00016999,2]
[365820381,1749937833436,-150.0,0.00016999,2]
[365820383,1749937833445,-150.0,0.00016999,2]
[365820385,1749937833455,-150.0,0.00016999,2]
[365820387,1749937833465,-200.0,0.00016999,2]
[365820389,1749937833474,-500.0,0.00016999,2]
[365820391,1749937833483,-300.0,0.00016999,2]
[365820393,1749937833493,-150.0,0.00016999,2]
[365820395,1749937833502,-150.0,0.00016999,2]
[365820397,1749937833512,-150.0,0.00016999,2]
[365820399,1749937833521,-500.0,0.00016999,2]
[365820401,1749937833531,-636.0,0.00016999,2]
[365820403,1749937833542,-150.0,0.00016999,2]
[365820405,1749937833552,-172.19014124,0.00016999,2]
[365820407,1749937833562,-500.0,0.00016999,2]
[365820409,1749937833572,-500.0,0.00016999,2]
[365820411,1749937833582,-500.0,0.00016999,2]
[365820413,1749937833591,-500.0,0.00016999,2]
[365820415,1749937833601,-500.0,0.00016999,2]
[365820417,1749937833611,-500.0,0.00016999,2]
[365820419,1749937833620,-500.0,0.00016999,2]
[365820421,1749937833630,-500.0,0.00016999,2]
[365820423,1749937833640,-597.47677124,0.00016999,2]
[365820425,1749937833652,-558.0,0.00017,2]
[365820427,1749937833662,-884.0,0.00017,2]
[365820429,1749937833672,-853.0,0.00017,2]
[365820431,1749937833682,-4087.0,0.00017,2]
[365820433,1749937833693,-46910.00594493,0.00017,2]
[365820436,1749937833706,-441.681,0.00017,2]
[365820438,1749937833718,-5406.77070804,0.00017,2]
[365820440,1749937833731,-24246.79329336,0.00017,2]
[365820442,1749937833742,-2105.58324742,0.00017,2]
[365820445,1749937833754,-771.64087066,0.00017,2]
[365820447,1749937833766,-416.7215045,0.00017,2]
[365820828,1749937837873,-3018.2714266,0.00017,2]
[365820830,1749937837883,-14154.50979323,0.00017,2]
[365820834,1749937837931,-3956.62935136,0.00017,2]
[365820836,1749937837943,-2105.4,0.00017,2]
[365820839,1749937837990,-22420.52349948,0.00017,2]
[365820840,1749937838002,-79755.0,0.00017,2]
[365820844,1749937838157,-423.74673554,0.00017,2]
[365821018,1749937840065,-464932.75118951,0.00017,2]
[365821019,1749937840074,-654298.02880304,0.00017,2]
[365821183,1749937841936,-1228.05511019,0.00017,2]
[365821185,1749937841947,-253.09871949,0.00017,2]
[365821214,1749937842209,-12530.72132208,0.00017,2]
[365821216,1749937842220,-1231.37837027,0.00017,2]
[365821299,1749937843037,-10622.3565109,0.00017,2]
[365821312,1749937843148,-986.56,0.00017,2]
[365821324,1749937843258,-150.0,0.00016999,2]
[365821326,1749937843267,-155681.63171827,0.00017,2]
[365821578,1749937846024,-500.0,0.00016999,2]
[365821579,1749937846033,-1160.0,0.00017,2]
[365821580,1749937846043,-26174.6579063,0.00017,2]
[365821581,1749937846054,-30686.0461001,0.00017,2]
[365821582,1749937846089,-31757.22165929,0.00017,2]
[365821614,1749937871903,201.0,0.00015701,2]
[365821616,1749938068598,761.48,0.00015705,2]
[365821617,1749938168414,250.0,0.00015712,2]
[365821618,1749938286701,1000.0,0.00015718,2]
[365821619,1749938292315,202.0,0.0001551,2]
[365821620,1749938412103,202.0,0.0001551,2]
[365821621,1749938442557,396.95,0.00013699,2]
[365821623,1749938497124,527.1,0.00015719,2]
[365821624,1749938513201,666.0,0.00015705,2]
[365821625,1749938516021,156.42,0.00015714,2]
[365821626,1749938649889,15067.28,0.0001572,2]
[365821627,1749938653191,202.0,0.00015382,2]
[365821629,1749938779500,202.0,0.00015382,2]
[365821630,1749938788553,1599.08,0.0001568,2]
[365821644,1749938864415,955.33,0.0001374,2]
[365821645,1749938892987,200.0,0.00015643,2]
[365821646,1749938949158,765.35,0.00015658,2]
[365821647,1749938955155,310.54,0.00015658,2]
[365821648,1749938955369,310.54,0.00015662,2]
[365821649,1749938955576,310.54,0.00015667,2]
[365821650,1749938955771,310.54,0.00015671,2]
[365821651,1749938955988,310.54,0.00015675,2]
[365821652,1749938956411,310.54,0.00015679,2]
[365821653,1749938956623,310.54,0.00015683,2]
[365821654,1749938956831,310.54,0.00015687,2]
[365821655,1749938957024,310.54,0.00015691,2]
[365821656,1749938957232,310.54,0.00015695,2]
[365821657,1749938957434,310.54,0.00015699,2]
[365821658,1749938957643,310.54,0.00015704,2]
[365821659,1749938957838,310.54,0.00015708,2]
[365821660,1749938958025,310.54,0.00015712,2]
[365821661,1749938958235,310.54,0.00015716,2]
[365821662,1749938958438,310.54,0.0001572,2]
[365821663,1749938958839,310.54,0.00015724,2]
[365821664,1749938959063,310.54,0.00015728,2]
[365821665,1749938959582,310.54,0.00015732,2]
[365821666,1749938959784,310.54,0.00015736,2]
[365821670,1749939012107,202.0,0.00015274,2]
[365821673,1749939032168,-155.24,0.00015952,2]
[365821674,1749939032177,-300.0,0.00015956,2]
[365821675,1749939032187,-155.24,0.00015959,2]
[365821676,1749939032196,-155.24,0.00015966,2]
[365821677,1749939032206,-155.24,0.00015972,2]
[365821678,1749939032215,-155.24,0.00015979,2]
[365821679,1749939032224,-744.58,0.00015985,2]
[365821680,1749939032233,-155.24,0.00015986,2]
[365821681,1749939032242,-155.24,0.00015992,2]
[365821682,1749939032252,-155.24,0.00015999,2]
[365821683,1749939032261,-198.5,0.00016,2]
[365821684,1749939032271,-198.5,0.00016,2]
[365821685,1749939032280,-198.5,0.00016,2]
[365821686,1749939032290,-955.33,0.00016004,2]
[365821687,1749939032299,-155.24,0.00016006,2]
[365821688,1749939032308,-155.24,0.00016012,2]
[365821689,1749939032317,-155.24,0.00016019,2]
[365821690,1749939032326,-155.24,0.00016026,2]
[365821691,1749939032335,-155.24,0.00016032,2]
[365821692,1749939032344,-207.4,0.00016149,2]
[365821693,1749939032353,-202.0,0.00016187,3]
[365821694,1749939032362,-152.0,0.00016429,3]
[365821695,1749939032373,-1200.0,0.00016488,2]
[365821696,1749939032383,-2796.9856318,0.00016489,11]
[365821697,1749939032392,-979.0,0.00016497,2]
[365821698,1749939032402,-150.0,0.00016508,2]
[365821699,1749939032412,-300.0,0.00016525,2]
[365821700,1749939032422,-1797.0,0.00016526,2]
[365821701,1749939032431,-865.0,0.00016608,2]
[365821702,1749939032440,-300.0,0.00016621,2]
[365821703,1749939032451,-1079.0,0.00016623,2]
[365821704,1749939032460,-151.0,0.00016738,2]
[365821705,1749939032469,-151.0,0.00016738,2]
[365821706,1749939032479,-150.0,0.0001674,2]
[365821707,1749939032488,-1000.0,0.00016748,2]
[365821709,1749939032498,-1000.0,0.00016748,2]
[365821711,1749939032508,-833.63237626,0.00016755,2]
[365821713,1749939032518,-464.33318378,0.00016778,2]
[365821714,1749939032528,-152.99102203,0.00016793,2]
[365821715,1749939032537,-156.82,0.000168,2]
[365821716,1749939032547,-1000.0,0.00016812,2]
[365821717,1749939032556,-1000.0,0.00016857,2]
[365821718,1749939032565,-259.19670852,0.0001686,2]
[365821719,1749939032577,-740.80329148,0.0001686,2]
[365821720,1749939032587,-1000.0,0.0001686,2]
[365821721,1749939032596,-150.0,0.00016864,2]
[365821722,1749939032605,-2000.0,0.00016864,2]
[365821723,1749939032615,-1107.505,0.00016879,2]
[365821724,1749939032624,-150.0,0.00016889,2]
[365821725,1749939032636,-5000.0,0.000169,2]
[365821726,1749939032645,-161.41727078,0.000169,2]
[365821727,1749939032655,-255.73967072,0.000169,2]
[365821728,1749939032664,-277.6438014,0.000169,2]
[365821729,1749939032674,-301.01377365,0.000169,2]
[365821730,1749939032683,-616.13729058,0.000169,2]
[365821731,1749939032695,-548.47686346,0.000169,2]
[365821732,1749939032705,-718.30226286,0.000169,2]
[365821733,1749939032717,-4985.91946078,0.000169,2]
[365821734,1749939032726,-188.97861563,0.000169,2]
[365821735,1749939032735,-188.91820463,0.000169,2]
[365821736,1749939032747,-1204.16977347,0.000169,2]
[365821738,1749939032758,-10237.00105921,0.000169,2]
[365821741,1749939032770,-591.36605923,0.000169,2]
[365821743,1749939032781,-1864.56664616,0.000169,2]
[365821745,1749939032793,-1069.85932377,0.000169,2]
[365821747,1749939032804,-268.61,0.000169,2]
[365821750,1749939032819,-269.652,0.000169,2]
[365822227,1749939038086,-1799.94227,0.000169,2]
[365822231,1749939038099,-1294.16046353,0.000169,2]
[365822232,1749939038109,-242.69747256,0.000169,2]
[365822236,1749939038119,-3020.94892398,0.000169,2]
[365822238,1749939038129,-223.78579082,0.00016901,2]
[365822241,1749939038140,-685.54240502,0.00016915,2]
[365822244,1749939038151,-182.6875245,0.00016915,2]
[365822246,1749939038163,-150.0,0.00016926,2]
[365822248,1749939038173,-200.0,0.00016932,2]
[365822250,1749939038182,-751.80627671,0.00016943,2]
[365822253,1749939038204,-248.19372329,0.00016943,2]
[365822255,1749939038214,-500.0,0.00016973,2]
[365822257,1749939038223,-500.0,0.00016973,2]
[365822259,1749939038232,-1000.0,0.00016976,2]
[365822261,1749939038241,-1064.56142454,0.00016988,2]
[365822263,1749939038250,-276.036359,0.00016993,2]
[365822265,1749939038259,-1095.8215682,0.00016994,2]
[365822267,1749939038268,-266.4070644,0.00016994,2]
[365822269,1749939038277,-3402.37005035,0.00016994,2]
[365822271,1749939038289,-12578.42684055,0.00016994,2]
[365822273,1749939038298,-500.0,0.00016999,2]
[365822275,1749939038307,-569.92117613,0.00016999,2]
[365822277,1749939038317,-1085.273481,0.00016999,2]
[365822279,1749939038326,-150.0,0.00016999,2]
[365822281,1749939038335,-150.0,0.00016999,2]
[365822283,1749939038345,-150.0,0.00016999,2]
[365822285,1749939038354,-500.0,0.00016999,2]
[365822287,1749939038363,-150.0,0.00016999,2]
[365822289,1749939038373,-500.0,0.00016999,2]
[365822291,1749939038382,-150.0,0.00016999,2]
[365822293,1749939038391,-150.0,0.00016999,2]
[365822295,1749939038400,-150.0,0.00016999,2]
[365822297,1749939038410,-168.95,0.00016999,2]
[365822299,1749939038419,-610.0,0.00016999,2]
[365822301,1749939038428,-152.23020556,0.00016999,2]